{"text_format":"1","workbook":"xlsx","n_sheets":9,"sheets":["Data Definitions","Details","Transactions 1-2","Transactions 3-4","Transactions 5-6","Transactions 7-8","Transactions 9-10","Joint Trade Instructions","Supporting"],"not_rendered":{"charts":0,"images":135,"macros":1,"external_links":0,"defined_names":59,"comments":0,"pivot_tables":0},"unopened":[],"bounds":{"document_bytes":16777216,"sheet_cells":100000,"rows_first":2000,"rows_last":500,"rows_between":2000,"halvings":0,"cell_chars":16384,"cell_head_chars":4096},"cells_cut":0,"cells_raw":0,"read":"whole","date_system":"1900"}

{"sheet":"Data Definitions","index":0,"n_rows":66,"n_cols":8,"rows_kept":66,"cut":false,"hidden":false,"merged":[]}
["United States Department of Transportation\nNational Highway Transportation Safety Administration\n\nNHTSA CAFE Credit Transaction Template (OMB Control No. 2127-0019)\nNHTSA Form Number 1475\n49 CFR 536.8, 49 CFR 536.5(d)(6), and 49 CFR 536.7\n\nVersion Number: 2.42; Last Revision: 04/15/2024; Expiration Date: xxxxxxxxxx"]
[]
[null,null,null,null,null,null,"Agency Message"]
[null,null,null,null,null,null,"This template meets the National Highway Traffic Safety Administration’s (NHTSA’s) regulatory requirements for submitting credit transaction instructions in accordance with 49 CFR 536. This template defines the data and data formats required by NHTSA's regulatory provisions. In accordance with 49 CFR 536.8, 49 CFR 536.5(d)(6), and 49 CFR 536.7, manufacturers and other CAFE credit account holders are required to submit Joint Trade Instructions, Credit Allocation Plans, and Carryback Plans to NHTSA to initiate the debiting and crediting of CAFE credit accounts, and the resolution of CAFE credit deficits.\n"]
[]
[null,null,null,null,null,null,"Paperwork Reduction Act Notice"]
[null,null,null,null,null,null,"The public reporting and recordkeeping burden for this collection of information is estimated to average 9 hours per response. Send comments on the Agency's need for this information, the accuracy of the provided burden estimates, and any suggested methods for minimizing respondent burden, including through the use of automated collection techniques to the address below. Include the OMB control number in any correspondence, but do not send the completed documents."]
[null,null,null,null,null,null,"\nOffice of the Chief Information Officer\nOffice of the Secretary\n1200 New Jersey Avenue, SE\nWashington, DC 20590\n"]
[]
[null,"Worksheet","Data Field","Location","Source","Data Type","Data Definition / Description","Regulatory Citations"]
[null,"Details","Company's Name","F13","User-Selected","List","Select the Credit Holder's Company Name.","49 CFR 536.5(b)(1)\n49 CFR 536.8(a)"]
[null,null,"Company's Street Address 1","F14","User-Entered","Text\n(50 Char. Limit)","Enter the first line of the Credit Holder's Street Address.","49 CFR 536.5(b)(1)\n49 CFR 536.8(a)"]
[null,null,"Company's Street Address 2","F15","User-Entered","Text\n(50 Char. Limit)","Enter the second line of the Credit Holder's Street Address.","49 CFR 536.5(b)(1)\n49 CFR 536.8(a)"]
[null,null,"Company's City / Town","F16","User-Entered","Text\n(50 Char. Limit)","Enter the Credit Holder's City or Town.","49 CFR 536.5(b)(1)\n49 CFR 536.8(a)"]
[null,null,"Company's State / Locality / Jurisdiction","F17","User-Entered","Text\n(50 Char. Limit)","Enter the Credit Holder's State, Locality, or Jurisdiction.","49 CFR 536.5(b)(1)\n49 CFR 536.8(a)"]
[null,null,"Company's Zip Code / Postal Code","F18","User-Entered","Text\n(50 Char. Limit)","Enter the Credit Holder's Zip Code or Postal Code.","49 CFR 536.5(b)(1)\n49 CFR 536.8(a)"]
[null,null,"Company's Country","F19","User-Entered","Text\n(50 Char. Limit)","Enter the Credit Holder's Country.","49 CFR 536.5(b)(1)\n49 CFR 536.8(a)"]
[null,null,"Company's Phone Number","F20","User-Entered","Text\n(50 Char. Limit)","Enter the Credit Holder's Phone Number.","49 CFR 536.5(b)(1)\n49 CFR 536.8(a)"]
[null,null,"Designated Signatory's Name","F24","User-Selected","Text\n(50 Char. Limit)","Enter the Name of the Credit Holder's Designated Signatory.","49 CFR 536.5(b)(1)\n49 CFR 536.8(a)"]
[null,null,"Designated Signatory's Title","F25","User-Entered","Text\n(50 Char. Limit)","Enter the Title of the Credit Holder's Designated Signatory.","49 CFR 536.5(b)(1)\n49 CFR 536.8(a)"]
[null,null,"Designated Signatory's Department","F26","User-Entered","Text\n(50 Char. Limit)","Enter the Department of the Credit Holder's Designated Signatory.","49 CFR 536.5(b)(1)\n49 CFR 536.8(a)"]
[null,null,"Designated Signatory's Company","F27","User-Entered","Text\n(50 Char. Limit)","Enter the Company Name of the Credit Holder's Designated Signatory.","49 CFR 536.5(b)(1)\n49 CFR 536.8(a)"]
[null,null,"Designated Signatory's Signature Date","F28","User-Entered","Date\n(mm/dd/yyyy)","Enter the Date the Credit Holder's Designated Signatory signed the agreement.","49 CFR 536.5(b)(1)\n49 CFR 536.8(a)"]
[null,null,"Point of Contact's Name","F32","User-Entered","Text\n(50 Char. Limit)","Enter the Name of the Credit Holder's Point of Contact.","49 CFR 536.5(b)(1)\n49 CFR 536.8(a)"]
[null,null,"Point of Contact's Title","F33","User-Entered","Text\n(50 Char. Limit)","Enter the Title of the Credit Holder's Point of Contact.","49 CFR 536.5(b)(1)\n49 CFR 536.8(a)"]
[null,null,"Point of Contact's Department","F34","User-Entered","Text\n(50 Char. Limit)","Enter the Department of the Credit Holder's Point of Contact.","49 CFR 536.5(b)(1)\n49 CFR 536.8(a)"]
[null,null,"Point of Contact's Company","F35","User-Entered","Text\n(50 Char. Limit)","Enter the Company Name of the Credit Holder's Point of Contact.","49 CFR 536.5(b)(1)\n49 CFR 536.8(a)"]
[null,null,"Point of Contact's Phone Number","F36","User-Entered","Text\n(50 Char. Limit)","Enter the Phone Number of the Credit Holder's Point of Contact.","49 CFR 536.5(b)(1)\n49 CFR 536.8(a)"]
[null,null,"Point of Contact's Email","F37","User-Entered","Text\n(50 Char. Limit)","Enter the Email Address of the Credit Holder's Point of Contact.","49 CFR 536.5(b)(1)\n49 CFR 536.8(a)"]
[null,null,"Company's Name","L13","User-Entered","List","Select the Credit Receiver's Company Name.","49 CFR 536.5(b)(1)\n49 CFR 536.8(a)"]
[null,null,"Company's Street Address 1","L14","User-Entered","Text\n(50 Char. Limit)","Enter the first line of the Credit Receiver's Street Address.","49 CFR 536.5(b)(1)\n49 CFR 536.8(a)"]
[null,null,"Company's Street Address 2","L15","User-Entered","Text\n(50 Char. Limit)","Enter the second line of the Credit Receiver's Street Address.","49 CFR 536.5(b)(1)\n49 CFR 536.8(a)"]
[null,null,"Company's City / Town","L16","User-Entered","Text\n(50 Char. Limit)","Enter the Credit Receiver's City or Town.","49 CFR 536.5(b)(1)\n49 CFR 536.8(a)"]
[null,null,"Company's State / Locality / Jurisdiction","L17","User-Entered","Text\n(50 Char. Limit)","Enter the Credit Receiver's State, Locality, or Jurisdiction.","49 CFR 536.5(b)(1)\n49 CFR 536.8(a)"]
[null,null,"Company's Zip Code / Postal Code","L18","User-Entered","Text\n(50 Char. Limit)","Enter the Credit Receiver's Zip Code or Postal Code.","49 CFR 536.5(b)(1)\n49 CFR 536.8(a)"]
[null,null,"Company's Country","L19","User-Entered","Text\n(50 Char. Limit)","Enter the Credit Receiver's Country.","49 CFR 536.5(b)(1)\n49 CFR 536.8(a)"]
[null,null,"Company's Phone Number","L20","User-Entered","Text\n(50 Char. Limit)","Enter the Credit Receiver's Phone Number.","49 CFR 536.5(b)(1)\n49 CFR 536.8(a)"]
[null,null,"Designated Signatory's Name","L24","User-Entered","Text\n(50 Char. Limit)","Enter the Name of the Credit Receiver's Designated Signatory.","49 CFR 536.5(b)(1)\n49 CFR 536.8(a)"]
[null,null,"Designated Signatory's Title","L25","User-Entered","Text\n(50 Char. Limit)","Enter the Title of the Credit Receiver's Designated Signatory.","49 CFR 536.5(b)(1)\n49 CFR 536.8(a)"]
[null,null,"Designated Signatory's Department","L26","User-Entered","Text\n(50 Char. Limit)","Enter the Department of the Credit Receiver's Designated Signatory.","49 CFR 536.5(b)(1)\n49 CFR 536.8(a)"]
[null,null,"Designated Signatory's Company","L27","User-Entered","Text\n(50 Char. Limit)","Enter the Company Name of the Credit Receiver's Designated Signatory.","49 CFR 536.5(b)(1)\n49 CFR 536.8(a)"]
[null,null,"Designated Signatory's Signature Date","L28","User-Entered","Date\n(mm/dd/yyyy)","Enter the Date the Credit Receiver's Designated Signatory signed the agreement.","49 CFR 536.5(b)(1)\n49 CFR 536.8(a)"]
[null,null,"Point of Contact's Name","L32","User-Entered","Text\n(50 Char. Limit)","Enter the Name of the Credit Receiver's Point of Contact.","49 CFR 536.5(b)(1)\n49 CFR 536.8(a)"]
[null,null,"Point of Contact's Title","L33","User-Entered","Text\n(50 Char. Limit)","Enter the Title of the Credit Receiver's Point of Contact.","49 CFR 536.5(b)(1)\n49 CFR 536.8(a)"]
[null,null,"Point of Contact's Department","L34","User-Entered","Text\n(50 Char. Limit)","Enter the Department of the Credit Receiver's Point of Contact.","49 CFR 536.5(b)(1)\n49 CFR 536.8(a)"]
[null,null,"Point of Contact's Company","L35","User-Entered","Text\n(50 Char. Limit)","Enter the Company Name of the Credit Receiver's Point of Contact.","49 CFR 536.5(b)(1)\n49 CFR 536.8(a)"]
[null,null,"Point of Contact's Phone Number","L36","User-Entered","Text\n(50 Char. Limit)","Enter the Phone Number of the Credit Receiver's Point of Contact.","49 CFR 536.5(b)(1)\n49 CFR 536.8(a)"]
[null,null,"Point of Contact's Email","L37","User-Entered","Text\n(50 Char. Limit)","Enter the Email Address of the Credit Receiver's Point of Contact.","49 CFR 536.5(b)(1)\n49 CFR 536.8(a)"]
[null,"Transactions 1-2\nTransactions 3-4","Transaction Date","D5","User-Entered","Date\n(mm/dd/yyyy)","Enter the Date of the Transaction.","49 CFR 536.8(a)\n49 CFR 536.8(b)"]
[null,"Transactions 5-6\nTransactions 7-8","Transaction Type","E9, E32","User-Selected","List","Select the Transaction Type from the dropdown list.","49 CFR 536.8(a)\n49 CFR 536.8(b)"]
[null,"Transactions 9-10","Initial Credit Amount","F9, F32","User-Entered","Whole Number","Enter the initial credit amount of the transaction.","49 CFR 536.8(a)\n49 CFR 536.8(b)"]
[null,null,"Credit Type","G9, G32","User-Selected","List","Select the Credit Type from the dropdown list.","49 CFR 536.8(a)\n49 CFR 536.8(b)"]
[null,null,"Apply to Shortfall","H9, H32","User-Selected","List","Select \"Yes\" if the transaction applies credits to an existing CAFE credit shortfall, select \"No\" if not.","49 CFR 536.4(c)"]
[null,null,"Manufacturer - Earned","F12, F35","User-Selected","List","Select the Manufacturer who earned the credits from the dropdown list.","49 CFR 536.8(a)\n49 CFR 536.8(b)"]
[null,null,"Compliance Category - Earned","G12, G35","User-Selected","List","Select the Compliance Category in which the credits were earned from the dropdown list.","49 CFR 536.8(a)\n49 CFR 536.8(b)"]
[null,null,"Model Year - Earned","H12, H35","User-Selected","List","Select the Compliance Model Year in which the credits were earned from the dropdown list.","49 CFR 536.8(a)\n49 CFR 536.8(b)"]
[null,null,"Actual Fuel Economy - Earned","G15, G38","User-Entered","Decimal Number\n(##.#)","If the transaction applies credits to an existing CAFE credit shortfall, enter the Fleet Average Fuel Economy of the fleet (i.e. manufacturer/compliance category/model year) that earned the credits.","49 CFR 536.4(c)"]
[null,null,"Required Fuel Economy Standard - Earned","H15, H38","User-Entered","Decimal Number\n(##.#)","If the transaction applies credits to an existing CAFE credit shortfall, enter the Fleet Average Fuel Economy Standard of the fleet (i.e. manufacturer/compliance category/model year) that earned the credits.","49 CFR 536.4(c)"]
[null,null,"Manufacturer - Current","F18, F41","User-Selected","List","Select the Manufacturer who currently holds the credits from the dropdown list.","49 CFR 536.8(a)\n49 CFR 536.8(b)"]
[null,null,"Compliance Category - Current","G18, G41","User-Selected","List","Select the Compliance Category in which the credits are currently held from the dropdown list.","49 CFR 536.8(a)\n49 CFR 536.8(b)"]
[null,null,"Model Year - Current","H18, H41","User-Selected","List","Select the Model Year in which the credits are currently held from the dropdown list.","49 CFR 536.8(a)\n49 CFR 536.8(b)"]
[null,null,"Manufacturer - Destination","F21, F44","User-Selected","List","Select the Manufacturer who will be receiving the credits from the dropdown list.","49 CFR 536.8(a)\n49 CFR 536.8(b)"]
[null,null,"Compliance Category - Destination","G21, G44","User-Selected","List","Select the Compliance Category that will be receiving the credits from the dropdown list.","49 CFR 536.8(a)\n49 CFR 536.8(b)"]
[null,null,"Model Year - Destination","H21, H44","User-Selected","List","Select the Model Year that will be receiving the credits from the dropdown list.","49 CFR 536.8(a)\n49 CFR 536.8(b)"]
[null,null,"Actual Fuel Economy - Destination","G24, G47","User-Entered","Decimal Number\n(##.#)","If the transaction applies credits to an existing CAFE credit shortfall, enter the Fleet Average Fuel Economy of the fleet (i.e. manufacturer/compliance category/model year) that earned the shortfall.","49 CFR 536.4(c)"]
[null,null,"Required Fuel Economy Standard - Destination","H24, H47","User-Entered","Decimal Number\n(##.#)","If the transaction applies credits to an existing CAFE credit shortfall, enter the Fleet Average Fuel Economy Standard of the fleet (i.e. manufacturer/compliance category/model year) that earned the shortfall.","49 CFR 536.4(c)"]

{"sheet":"Details","index":1,"n_rows":37,"n_cols":13,"rows_kept":37,"cut":false,"hidden":false,"merged":[]}
[]
[null,{"$f":"Header","v":"United States Department of Transportation\nNational Highway Transportation Safety Administration\n\nNHTSA CAFE Credit Transaction Template (OMB Control No. 2127-0019)\nNHTSA Form Number 1475\n49 CFR 536.8, 49 CFR 536.5(d)(6), and 49 CFR 536.7\n\nVersion Number: 2.42; Last Revision: 04/15/2024; Expiration Date: xxxxxxxxxx"}]
[]
[null,null,"TRANSACTION DETAILS"]
[null,null,null,"Yes",null,"(Select No. of Transactions)"]
[]
[null,null,null,null,null,null,null,null,null,"Transaction ID",null,{"$f":"G9&\"-\"&M9&\"-\"&Signatory_Date_Receiver","v":"0-0-"}]
[]
[null,null,"Credit Holder",null,null,null,{"$f":"VLOOKUP(Name_Holder,Supporting!$G$4:$H$39,2,FALSE)","v":0},null,"Credit Receiver",null,null,null,{"$f":"VLOOKUP(Name_Receiver,Supporting!$G$4:$H$39,2,FALSE)","v":0}]
[]
[null,null,null,null,null,"Company",null,null,null,null,null,"Company"]
[]
[null,null,null,"Name:",null,"(Select Manufacturer)",null,null,null,"Name:",null,"(Select Manufacturer)"]
[null,null,null,"Street Address 1:",null,null,null,null,null,"Street Address 1:"]
[null,null,null,"Street Address 2:",null,null,null,null,null,"Street Address 2:"]
[null,null,null,"City / Town:",null,null,null,null,null,"City / Town:"]
[null,null,null,"State / Locality / Jurisdiction:",null,null,null,null,null,"State / Locality / Jurisdiction:"]
[null,null,null,"Zip Code / Postal Code:",null,null,null,null,null,"Zip Code / Postal Code:"]
[null,null,null,"Country:",null,null,null,null,null,"Country:"]
[null,null,null,"Phone Number:",null,null,null,null,null,"Phone Number:"]
[]
[null,null,null,null,null,"Designated Signatory",null,null,null,null,null,"Designated Signatory"]
[]
[null,null,null,"Name:",null,null,null,null,null,"Name:"]
[null,null,null,"Title:",null,null,null,null,null,"Title:"]
[null,null,null,"Department:",null,null,null,null,null,"Department:"]
[null,null,null,"Company:",null,null,null,null,null,"Company:"]
[null,null,null,"Signature Date: (mm-dd-yyyy)",null,null,null,null,null,"Signature Date: (mm-dd-yyyy)"]
[]
[null,null,null,null,null,"Point of Contact",null,null,null,null,null,"Point of Contact"]
[]
[null,null,null,"Name:",null,null,null,null,null,"Name:"]
[null,null,null,"Title:",null,null,null,null,null,"Title:"]
[null,null,null,"Department:",null,null,null,null,null,"Department:"]
[null,null,null,"Company:",null,null,null,null,null,"Company:"]
[null,null,null,"Phone Number:",null,null,null,null,null,"Phone Number:"]
[null,null,null,"Email:",null,null,null,null,null,"Email:"]

{"sheet":"Transactions 1-2","index":2,"n_rows":59,"n_cols":8,"rows_kept":59,"cut":false,"hidden":true,"merged":[]}
[]
[null,{"$f":"Header","v":"United States Department of Transportation\nNational Highway Transportation Safety Administration\n\nNHTSA CAFE Credit Transaction Template (OMB Control No. 2127-0019)\nNHTSA Form Number 1475\n49 CFR 536.8, 49 CFR 536.5(d)(6), and 49 CFR 536.7\n\nVersion Number: 2.42; Last Revision: 04/15/2024; Expiration Date: xxxxxxxxxx"}]
[]
[null,null,null,"Transaction Date\n(mm/dd/yyyy)",null,null,null,1]
[]
[]
[null,null,null,null,"(Select Transaction Type)",null,"(Select Type of Credits)","(Select Yes or No)"]
[null,null,null,"Transaction No.","Transaction Type","Initial Credit Amount","Credit Type","Apply to Shortfall?"]
[null,null,null,1]
[null,null,null,null,null,"(Select Manufacturer)","(Select Compliance Category)","(Select MY)"]
[null,null,null,null,"Earned Account:","Manufacturer","Compliance Category","MY"]
[]
[]
[null,null,null,null,"Earned Account:","VMTe","MPGae","MPGse"]
[null,null,null,null,null,{"$f":"IF(AND(OR(E7<>\"Carry Forward\",E7<>\"Carry Back\"),H7=\"Yes\",F10<>\"(Select Manufacturer)\",G10<>\"(Select Compliance Category)\",H10<>\"(Select MY)\"),VLOOKUP(CONCATENATE($G10,\"-\",$H10),Unique_ID_Lookup,4,FALSE),\"\")","v":""}]
[null,null,null,null,null,"(Select Manufacturer)","(Select Compliance Category)","(Select MY)"]
[null,null,null,null,"Current Account:","Manufacturer","Compliance Category","MY"]
[]
[null,null,null,null,null,"(Select Manufacturer)","(Select Compliance Category)","(Select MY)"]
[null,null,null,null,"Destination Account:","Manufacturer","Compliance Category","MY"]
[]
[]
[null,null,null,null,"Destination Account:","VMTu","MPGau","MPGsu"]
[null,null,null,null,null,{"$f":"IF(AND(OR(E7<>\"Carry Forward\",E7<>\"Carry Back\"),H7=\"Yes\",F19<>\"(Select Manufacturer)\",G19<>\"(Select Compliance Category)\",H19<>\"(Select MY)\"),VLOOKUP(CONCATENATE($G19,\"-\",$H19),Unique_ID_Lookup,4,FALSE),\"\")","v":""}]
[]
[null,null,null,null,null,null,"Adjustment Factor","Final Credit Amount"]
[null,null,null,null,null,null,{"$f":"ROUND(IFERROR(IF(OR(E7=\"(Select Transaction Type)\",H7=\"(Select Yes or No)\"),0,IF(OR(E7=\"Carry Forward\",E7=\"Carry Back\",H7=\"No\"),1,(F24*G15*H15)/(F15*G24*H24))),0),4)","v":0},{"$f":"ROUND(IFERROR(F9/G27,0),0)","v":0}]
[]
[]
[null,null,null,null,"(Select Transaction Type)",null,"(Select Type of Credits)","(Select Yes or No)"]
[null,null,null,"Transaction No.","Transaction Type","Initial Credit Amount","Credit Type","Apply to Shortfall?"]
[null,null,null,{"$f":"D9+1","v":2}]
[null,null,null,null,null,"(Select Manufacturer)","(Select Compliance Category)","(Select MY)"]
[null,null,null,null,"Earned Account:","Manufacturer","Compliance Category","MY"]
[]
[]
[null,null,null,null,"Earned Account:","VMTe","MPGae","MPGse"]
[null,null,null,null,null,{"$f":"IF(AND(OR(E30<>\"Carry Forward\",E30<>\"Carry Back\"),H30=\"Yes\",F33<>\"(Select Manufacturer)\",G33<>\"(Select Compliance Category)\",H33<>\"(Select MY)\"),VLOOKUP(CONCATENATE($G33,\"-\",$H33),Unique_ID_Lookup,4,FALSE),\"\")","v":""}]
[null,null,null,null,null,"(Select Manufacturer)","(Select Compliance Category)","(Select MY)"]
[null,null,null,null,"Current Account:","Manufacturer","Compliance Category","MY"]
[]
[null,null,null,null,null,"(Select Manufacturer)","(Select Compliance Category)","(Select MY)"]
[null,null,null,null,"Destination Account:","Manufacturer","Compliance Category","MY"]
[]
[]
[null,null,null,null,"Destination Account:","VMTu","MPGau","MPGsu"]
[null,null,null,null,null,{"$f":"IF(AND(OR(E30<>\"Carry Forward\",E30<>\"Carry Back\"),H30=\"Yes\",F42<>\"(Select Manufacturer)\",G42<>\"(Select Compliance Category)\",H42<>\"(Select MY)\"),VLOOKUP(CONCATENATE($G42,\"-\",$H42),Unique_ID_Lookup,4,FALSE),\"\")","v":""}]
[]
[null,null,null,null,null,null,"Adjustment Factor","Final Credit Amount"]
[null,null,null,null,null,null,{"$f":"ROUND(IFERROR(IF(OR(E30=\"(Select Transaction Type)\",H30=\"(Select Yes or No)\"),0,IF(OR(E30=\"Carry Forward\",E30=\"Carry Back\",H30=\"No\"),1,(F47*G38*H38)/(F38*G47*H47))),0),4)","v":0},{"$f":"ROUND(IFERROR(F32/G50,0),0)","v":0}]
[]
[]
[]
[null,null,null,"VMTe = Lifetime vehicle miles traveled as provided in the following table for the model year and compliance category in which the credit was earned;"]
[null,null,null,"MPGae = Actual fuel economy for the originating manufacturer, compliance category, and model year in which the credit was earned;"]
[null,null,null,"MPGse = Required fuel economy standard for the originating (earning) manufacturer, compliance category, and model year in which the credit was earned;"]
[null,null,null,"VMTu = Lifetime vehicle miles traveled as provided in the following table for the model year and compliance category in which the credit is used for compliance;"]
[null,null,null,"MPGau = Actual fuel economy for the user manufacturer, compliance category, and model year in which the credit is used for compliance; and"]
[null,null,null,"MPGsu = Required fuel economy standard for the user (buying) manufacturer, compliance category, and model year in which the credit is used for compliance."]

{"sheet":"Transactions 3-4","index":3,"n_rows":59,"n_cols":8,"rows_kept":59,"cut":false,"hidden":true,"merged":[]}
[]
[null,{"$f":"Header","v":"United States Department of Transportation\nNational Highway Transportation Safety Administration\n\nNHTSA CAFE Credit Transaction Template (OMB Control No. 2127-0019)\nNHTSA Form Number 1475\n49 CFR 536.8, 49 CFR 536.5(d)(6), and 49 CFR 536.7\n\nVersion Number: 2.42; Last Revision: 04/15/2024; Expiration Date: xxxxxxxxxx"}]
[]
[null,null,null,"Transaction Date\n(mm/dd/yyyy)",null,null,null,{"$f":"'Transactions 1-2'!H4+1","v":2}]
[]
[]
[null,null,null,null,"(Select Transaction Type)",null,"(Select Type of Credits)","(Select Yes or No)"]
[null,null,null,"Transaction No.","Transaction Type","Initial Credit Amount","Credit Type","Apply to Shortfall?"]
[null,null,null,{"$f":"'Transactions 1-2'!D32+1","v":3}]
[null,null,null,null,null,"(Select Manufacturer)","(Select Compliance Category)","(Select MY)"]
[null,null,null,null,"Earned Account:","Manufacturer","Compliance Category","MY"]
[]
[]
[null,null,null,null,"Earned Account:","VMTe","MPGae","MPGse"]
[null,null,null,null,null,{"$f":"IF(AND(OR(E7<>\"Carry Forward\",E7<>\"Carry Back\"),H7=\"Yes\",F10<>\"(Select Manufacturer)\",G10<>\"(Select Compliance Category)\",H10<>\"(Select MY)\"),VLOOKUP(CONCATENATE($G10,\"-\",$H10),Unique_ID_Lookup,4,FALSE),\"\")","v":""}]
[null,null,null,null,null,"(Select Manufacturer)","(Select Compliance Category)","(Select MY)"]
[null,null,null,null,"Current Account:","Manufacturer","Compliance Category","MY"]
[]
[null,null,null,null,null,"(Select Manufacturer)","(Select Compliance Category)","(Select MY)"]
[null,null,null,null,"Destination Account:","Manufacturer","Compliance Category","MY"]
[]
[]
[null,null,null,null,"Destination Account:","VMTu","MPGau","MPGsu"]
[null,null,null,null,null,{"$f":"IF(AND(OR(E7<>\"Carry Forward\",E7<>\"Carry Back\"),H7=\"Yes\",F19<>\"(Select Manufacturer)\",G19<>\"(Select Compliance Category)\",H19<>\"(Select MY)\"),VLOOKUP(CONCATENATE($G19,\"-\",$H19),Unique_ID_Lookup,4,FALSE),\"\")","v":""}]
[]
[null,null,null,null,null,null,"Adjustment Factor","Final Credit Amount"]
[null,null,null,null,null,null,{"$f":"ROUND(IFERROR(IF(OR(E7=\"(Select Transaction Type)\",H7=\"(Select Yes or No)\"),0,IF(OR(E7=\"Carry Forward\",E7=\"Carry Back\",H7=\"No\"),1,(F24*G15*H15)/(F15*G24*H24))),0),4)","v":0},{"$f":"ROUND(IFERROR(F9/G27,0),0)","v":0}]
[]
[]
[null,null,null,null,"(Select Transaction Type)",null,"(Select Type of Credits)","(Select Yes or No)"]
[null,null,null,"Transaction No.","Transaction Type","Initial Credit Amount","Credit Type","Apply to Shortfall?"]
[null,null,null,{"$f":"D9+1","v":4}]
[null,null,null,null,null,"(Select Manufacturer)","(Select Compliance Category)","(Select MY)"]
[null,null,null,null,"Earned Account:","Manufacturer","Compliance Category","MY"]
[]
[]
[null,null,null,null,"Earned Account:","VMTe","MPGae","MPGse"]
[null,null,null,null,null,{"$f":"IF(AND(OR(E30<>\"Carry Forward\",E30<>\"Carry Back\"),H30=\"Yes\",F33<>\"(Select Manufacturer)\",G33<>\"(Select Compliance Category)\",H33<>\"(Select MY)\"),VLOOKUP(CONCATENATE($G33,\"-\",$H33),Unique_ID_Lookup,4,FALSE),\"\")","v":""}]
[null,null,null,null,null,"(Select Manufacturer)","(Select Compliance Category)","(Select MY)"]
[null,null,null,null,"Current Account:","Manufacturer","Compliance Category","MY"]
[]
[null,null,null,null,null,"(Select Manufacturer)","(Select Compliance Category)","(Select MY)"]
[null,null,null,null,"Destination Account:","Manufacturer","Compliance Category","MY"]
[]
[]
[null,null,null,null,"Destination Account:","VMTu","MPGau","MPGsu"]
[null,null,null,null,null,{"$f":"IF(AND(OR(E30<>\"Carry Forward\",E30<>\"Carry Back\"),H30=\"Yes\",F42<>\"(Select Manufacturer)\",G42<>\"(Select Compliance Category)\",H42<>\"(Select MY)\"),VLOOKUP(CONCATENATE($G42,\"-\",$H42),Unique_ID_Lookup,4,FALSE),\"\")","v":""}]
[]
[null,null,null,null,null,null,"Adjustment Factor","Final Credit Amount"]
[null,null,null,null,null,null,{"$f":"ROUND(IFERROR(IF(OR(E30=\"(Select Transaction Type)\",H30=\"(Select Yes or No)\"),0,IF(OR(E30=\"Carry Forward\",E30=\"Carry Back\",H30=\"No\"),1,(F47*G38*H38)/(F38*G47*H47))),0),4)","v":0},{"$f":"ROUND(IFERROR(F32/G50,0),0)","v":0}]
[]
[]
[]
[null,null,null,"VMTe = Lifetime vehicle miles traveled as provided in the following table for the model year and compliance category in which the credit was earned;"]
[null,null,null,"MPGae = Actual fuel economy for the originating manufacturer, compliance category, and model year in which the credit was earned;"]
[null,null,null,"MPGse = Required fuel economy standard for the originating (earning) manufacturer, compliance category, and model year in which the credit was earned;"]
[null,null,null,"VMTu = Lifetime vehicle miles traveled as provided in the following table for the model year and compliance category in which the credit is used for compliance;"]
[null,null,null,"MPGau = Actual fuel economy for the user manufacturer, compliance category, and model year in which the credit is used for compliance; and"]
[null,null,null,"MPGsu = Required fuel economy standard for the user (buying) manufacturer, compliance category, and model year in which the credit is used for compliance."]

{"sheet":"Transactions 5-6","index":4,"n_rows":59,"n_cols":8,"rows_kept":59,"cut":false,"hidden":true,"merged":[]}
[]
[null,{"$f":"Header","v":"United States Department of Transportation\nNational Highway Transportation Safety Administration\n\nNHTSA CAFE Credit Transaction Template (OMB Control No. 2127-0019)\nNHTSA Form Number 1475\n49 CFR 536.8, 49 CFR 536.5(d)(6), and 49 CFR 536.7\n\nVersion Number: 2.42; Last Revision: 04/15/2024; Expiration Date: xxxxxxxxxx"}]
[]
[null,null,null,"Transaction Date\n(mm/dd/yyyy)",null,null,null,{"$f":"'Transactions 3-4'!H4+1","v":3}]
[]
[]
[null,null,null,null,"(Select Transaction Type)",null,"(Select Type of Credits)","(Select Yes or No)"]
[null,null,null,"Transaction No.","Transaction Type","Initial Credit Amount","Credit Type","Apply to Shortfall?"]
[null,null,null,{"$f":"'Transactions 3-4'!D32+1","v":5}]
[null,null,null,null,null,"(Select Manufacturer)","(Select Compliance Category)","(Select MY)"]
[null,null,null,null,"Earned Account:","Manufacturer","Compliance Category","MY"]
[]
[]
[null,null,null,null,"Earned Account:","VMTe","MPGae","MPGse"]
[null,null,null,null,null,{"$f":"IF(AND(OR(E7<>\"Carry Forward\",E7<>\"Carry Back\"),H7=\"Yes\",F10<>\"(Select Manufacturer)\",G10<>\"(Select Compliance Category)\",H10<>\"(Select MY)\"),VLOOKUP(CONCATENATE($G10,\"-\",$H10),Unique_ID_Lookup,4,FALSE),\"\")","v":""}]
[null,null,null,null,null,"(Select Manufacturer)","(Select Compliance Category)","(Select MY)"]
[null,null,null,null,"Current Account:","Manufacturer","Compliance Category","MY"]
[]
[null,null,null,null,null,"(Select Manufacturer)","(Select Compliance Category)","(Select MY)"]
[null,null,null,null,"Destination Account:","Manufacturer","Compliance Category","MY"]
[]
[]
[null,null,null,null,"Destination Account:","VMTu","MPGau","MPGsu"]
[null,null,null,null,null,{"$f":"IF(AND(OR(E7<>\"Carry Forward\",E7<>\"Carry Back\"),H7=\"Yes\",F19<>\"(Select Manufacturer)\",G19<>\"(Select Compliance Category)\",H19<>\"(Select MY)\"),VLOOKUP(CONCATENATE($G19,\"-\",$H19),Unique_ID_Lookup,4,FALSE),\"\")","v":""}]
[]
[null,null,null,null,null,null,"Adjustment Factor","Final Credit Amount"]
[null,null,null,null,null,null,{"$f":"ROUND(IFERROR(IF(OR(E7=\"(Select Transaction Type)\",H7=\"(Select Yes or No)\"),0,IF(OR(E7=\"Carry Forward\",E7=\"Carry Back\",H7=\"No\"),1,(F24*G15*H15)/(F15*G24*H24))),0),4)","v":0},{"$f":"ROUND(IFERROR(F9/G27,0),0)","v":0}]
[]
[]
[null,null,null,null,"(Select Transaction Type)",null,"(Select Type of Credits)","(Select Yes or No)"]
[null,null,null,"Transaction No.","Transaction Type","Initial Credit Amount","Credit Type","Apply to Shortfall?"]
[null,null,null,{"$f":"D9+1","v":6}]
[null,null,null,null,null,"(Select Manufacturer)","(Select Compliance Category)","(Select MY)"]
[null,null,null,null,"Earned Account:","Manufacturer","Compliance Category","MY"]
[]
[]
[null,null,null,null,"Earned Account:","VMTe","MPGae","MPGse"]
[null,null,null,null,null,{"$f":"IF(AND(OR(E30<>\"Carry Forward\",E30<>\"Carry Back\"),H30=\"Yes\",F33<>\"(Select Manufacturer)\",G33<>\"(Select Compliance Category)\",H33<>\"(Select MY)\"),VLOOKUP(CONCATENATE($G33,\"-\",$H33),Unique_ID_Lookup,4,FALSE),\"\")","v":""}]
[null,null,null,null,null,"(Select Manufacturer)","(Select Compliance Category)","(Select MY)"]
[null,null,null,null,"Current Account:","Manufacturer","Compliance Category","MY"]
[]
[null,null,null,null,null,"(Select Manufacturer)","(Select Compliance Category)","(Select MY)"]
[null,null,null,null,"Destination Account:","Manufacturer","Compliance Category","MY"]
[]
[]
[null,null,null,null,"Destination Account:","VMTu","MPGau","MPGsu"]
[null,null,null,null,null,{"$f":"IF(AND(OR(E30<>\"Carry Forward\",E30<>\"Carry Back\"),H30=\"Yes\",F42<>\"(Select Manufacturer)\",G42<>\"(Select Compliance Category)\",H42<>\"(Select MY)\"),VLOOKUP(CONCATENATE($G42,\"-\",$H42),Unique_ID_Lookup,4,FALSE),\"\")","v":""}]
[]
[null,null,null,null,null,null,"Adjustment Factor","Final Credit Amount"]
[null,null,null,null,null,null,{"$f":"ROUND(IFERROR(IF(OR(E30=\"(Select Transaction Type)\",H30=\"(Select Yes or No)\"),0,IF(OR(E30=\"Carry Forward\",E30=\"Carry Back\",H30=\"No\"),1,(F47*G38*H38)/(F38*G47*H47))),0),4)","v":0},{"$f":"ROUND(IFERROR(F32/G50,0),0)","v":0}]
[]
[]
[]
[null,null,null,"VMTe = Lifetime vehicle miles traveled as provided in the following table for the model year and compliance category in which the credit was earned;"]
[null,null,null,"MPGae = Actual fuel economy for the originating manufacturer, compliance category, and model year in which the credit was earned;"]
[null,null,null,"MPGse = Required fuel economy standard for the originating (earning) manufacturer, compliance category, and model year in which the credit was earned;"]
[null,null,null,"VMTu = Lifetime vehicle miles traveled as provided in the following table for the model year and compliance category in which the credit is used for compliance;"]
[null,null,null,"MPGau = Actual fuel economy for the user manufacturer, compliance category, and model year in which the credit is used for compliance; and"]
[null,null,null,"MPGsu = Required fuel economy standard for the user (buying) manufacturer, compliance category, and model year in which the credit is used for compliance."]

{"sheet":"Transactions 7-8","index":5,"n_rows":59,"n_cols":8,"rows_kept":59,"cut":false,"hidden":true,"merged":[]}
[]
[null,{"$f":"Header","v":"United States Department of Transportation\nNational Highway Transportation Safety Administration\n\nNHTSA CAFE Credit Transaction Template (OMB Control No. 2127-0019)\nNHTSA Form Number 1475\n49 CFR 536.8, 49 CFR 536.5(d)(6), and 49 CFR 536.7\n\nVersion Number: 2.42; Last Revision: 04/15/2024; Expiration Date: xxxxxxxxxx"}]
[]
[null,null,null,"Transaction Date\n(mm/dd/yyyy)",null,null,null,{"$f":"'Transactions 5-6'!H4+1","v":4}]
[]
[]
[null,null,null,null,"(Select Transaction Type)",null,"(Select Type of Credits)","(Select Yes or No)"]
[null,null,null,"Transaction No.","Transaction Type","Initial Credit Amount","Credit Type","Apply to Shortfall?"]
[null,null,null,{"$f":"'Transactions 5-6'!D32+1","v":7}]
[null,null,null,null,null,"(Select Manufacturer)","(Select Compliance Category)","(Select MY)"]
[null,null,null,null,"Earned Account:","Manufacturer","Compliance Category","MY"]
[]
[]
[null,null,null,null,"Earned Account:","VMTe","MPGae","MPGse"]
[null,null,null,null,null,{"$f":"IF(AND(OR(E7<>\"Carry Forward\",E7<>\"Carry Back\"),H7=\"Yes\",F10<>\"(Select Manufacturer)\",G10<>\"(Select Compliance Category)\",H10<>\"(Select MY)\"),VLOOKUP(CONCATENATE($G10,\"-\",$H10),Unique_ID_Lookup,4,FALSE),\"\")","v":""}]
[null,null,null,null,null,"(Select Manufacturer)","(Select Compliance Category)","(Select MY)"]
[null,null,null,null,"Current Account:","Manufacturer","Compliance Category","MY"]
[]
[null,null,null,null,null,"(Select Manufacturer)","(Select Compliance Category)","(Select MY)"]
[null,null,null,null,"Destination Account:","Manufacturer","Compliance Category","MY"]
[]
[]
[null,null,null,null,"Destination Account:","VMTu","MPGau","MPGsu"]
[null,null,null,null,null,{"$f":"IF(AND(OR(E7<>\"Carry Forward\",E7<>\"Carry Back\"),H7=\"Yes\",F19<>\"(Select Manufacturer)\",G19<>\"(Select Compliance Category)\",H19<>\"(Select MY)\"),VLOOKUP(CONCATENATE($G19,\"-\",$H19),Unique_ID_Lookup,4,FALSE),\"\")","v":""}]
[]
[null,null,null,null,null,null,"Adjustment Factor","Final Credit Amount"]
[null,null,null,null,null,null,{"$f":"ROUND(IFERROR(IF(OR(E7=\"(Select Transaction Type)\",H7=\"(Select Yes or No)\"),0,IF(OR(E7=\"Carry Forward\",E7=\"Carry Back\",H7=\"No\"),1,(F24*G15*H15)/(F15*G24*H24))),0),4)","v":0},{"$f":"ROUND(IFERROR(F9/G27,0),0)","v":0}]
[]
[]
[null,null,null,null,"(Select Transaction Type)",null,"(Select Type of Credits)","(Select Yes or No)"]
[null,null,null,"Transaction No.","Transaction Type","Initial Credit Amount","Credit Type","Apply to Shortfall?"]
[null,null,null,{"$f":"D9+1","v":8}]
[null,null,null,null,null,"(Select Manufacturer)","(Select Compliance Category)","(Select MY)"]
[null,null,null,null,"Earned Account:","Manufacturer","Compliance Category","MY"]
[]
[]
[null,null,null,null,"Earned Account:","VMTe","MPGae","MPGse"]
[null,null,null,null,null,{"$f":"IF(AND(OR(E30<>\"Carry Forward\",E30<>\"Carry Back\"),H30=\"Yes\",F33<>\"(Select Manufacturer)\",G33<>\"(Select Compliance Category)\",H33<>\"(Select MY)\"),VLOOKUP(CONCATENATE($G33,\"-\",$H33),Unique_ID_Lookup,4,FALSE),\"\")","v":""}]
[null,null,null,null,null,"(Select Manufacturer)","(Select Compliance Category)","(Select MY)"]
[null,null,null,null,"Current Account:","Manufacturer","Compliance Category","MY"]
[]
[null,null,null,null,null,"(Select Manufacturer)","(Select Compliance Category)","(Select MY)"]
[null,null,null,null,"Destination Account:","Manufacturer","Compliance Category","MY"]
[]
[]
[null,null,null,null,"Destination Account:","VMTu","MPGau","MPGsu"]
[null,null,null,null,null,{"$f":"IF(AND(OR(E30<>\"Carry Forward\",E30<>\"Carry Back\"),H30=\"Yes\",F42<>\"(Select Manufacturer)\",G42<>\"(Select Compliance Category)\",H42<>\"(Select MY)\"),VLOOKUP(CONCATENATE($G42,\"-\",$H42),Unique_ID_Lookup,4,FALSE),\"\")","v":""}]
[]
[null,null,null,null,null,null,"Adjustment Factor","Final Credit Amount"]
[null,null,null,null,null,null,{"$f":"ROUND(IFERROR(IF(OR(E30=\"(Select Transaction Type)\",H30=\"(Select Yes or No)\"),0,IF(OR(E30=\"Carry Forward\",E30=\"Carry Back\",H30=\"No\"),1,(F47*G38*H38)/(F38*G47*H47))),0),4)","v":0},{"$f":"ROUND(IFERROR(F32/G50,0),0)","v":0}]
[]
[]
[]
[null,null,null,"VMTe = Lifetime vehicle miles traveled as provided in the following table for the model year and compliance category in which the credit was earned;"]
[null,null,null,"MPGae = Actual fuel economy for the originating manufacturer, compliance category, and model year in which the credit was earned;"]
[null,null,null,"MPGse = Required fuel economy standard for the originating (earning) manufacturer, compliance category, and model year in which the credit was earned;"]
[null,null,null,"VMTu = Lifetime vehicle miles traveled as provided in the following table for the model year and compliance category in which the credit is used for compliance;"]
[null,null,null,"MPGau = Actual fuel economy for the user manufacturer, compliance category, and model year in which the credit is used for compliance; and"]
[null,null,null,"MPGsu = Required fuel economy standard for the user (buying) manufacturer, compliance category, and model year in which the credit is used for compliance."]

{"sheet":"Transactions 9-10","index":6,"n_rows":59,"n_cols":8,"rows_kept":59,"cut":false,"hidden":true,"merged":[]}
[]
[null,{"$f":"Header","v":"United States Department of Transportation\nNational Highway Transportation Safety Administration\n\nNHTSA CAFE Credit Transaction Template (OMB Control No. 2127-0019)\nNHTSA Form Number 1475\n49 CFR 536.8, 49 CFR 536.5(d)(6), and 49 CFR 536.7\n\nVersion Number: 2.42; Last Revision: 04/15/2024; Expiration Date: xxxxxxxxxx"}]
[]
[null,null,null,"Transaction Date\n(mm/dd/yyyy)",null,null,null,{"$f":"'Transactions 7-8'!H4+1","v":5}]
[]
[]
[null,null,null,null,"(Select Transaction Type)",null,"(Select Type of Credits)","(Select Yes or No)"]
[null,null,null,"Transaction No.","Transaction Type","Initial Credit Amount","Credit Type","Apply to Shortfall?"]
[null,null,null,{"$f":"'Transactions 7-8'!D32+1","v":9}]
[null,null,null,null,null,"(Select Manufacturer)","(Select Compliance Category)","(Select MY)"]
[null,null,null,null,"Earned Account:","Manufacturer","Compliance Category","MY"]
[]
[]
[null,null,null,null,"Earned Account:","VMTe","MPGae","MPGse"]
[null,null,null,null,null,{"$f":"IF(AND(OR(E7<>\"Carry Forward\",E7<>\"Carry Back\"),H7=\"Yes\",F10<>\"(Select Manufacturer)\",G10<>\"(Select Compliance Category)\",H10<>\"(Select MY)\"),VLOOKUP(CONCATENATE($G10,\"-\",$H10),Unique_ID_Lookup,4,FALSE),\"\")","v":""}]
[null,null,null,null,null,"(Select Manufacturer)","(Select Compliance Category)","(Select MY)"]
[null,null,null,null,"Current Account:","Manufacturer","Compliance Category","MY"]
[]
[null,null,null,null,null,"(Select Manufacturer)","(Select Compliance Category)","(Select MY)"]
[null,null,null,null,"Destination Account:","Manufacturer","Compliance Category","MY"]
[]
[]
[null,null,null,null,"Destination Account:","VMTu","MPGau","MPGsu"]
[null,null,null,null,null,{"$f":"IF(AND(OR(E7<>\"Carry Forward\",E7<>\"Carry Back\"),H7=\"Yes\",F19<>\"(Select Manufacturer)\",G19<>\"(Select Compliance Category)\",H19<>\"(Select MY)\"),VLOOKUP(CONCATENATE($G19,\"-\",$H19),Unique_ID_Lookup,4,FALSE),\"\")","v":""}]
[]
[null,null,null,null,null,null,"Adjustment Factor","Final Credit Amount"]
[null,null,null,null,null,null,{"$f":"ROUND(IFERROR(IF(OR(E7=\"(Select Transaction Type)\",H7=\"(Select Yes or No)\"),0,IF(OR(E7=\"Carry Forward\",E7=\"Carry Back\",H7=\"No\"),1,(F24*G15*H15)/(F15*G24*H24))),0),4)","v":0},{"$f":"ROUND(IFERROR(F9/G27,0),0)","v":0}]
[]
[]
[null,null,null,null,"(Select Transaction Type)",null,"(Select Type of Credits)","(Select Yes or No)"]
[null,null,null,"Transaction No.","Transaction Type","Initial Credit Amount","Credit Type","Apply to Shortfall?"]
[null,null,null,{"$f":"D9+1","v":10}]
[null,null,null,null,null,"(Select Manufacturer)","(Select Compliance Category)","(Select MY)"]
[null,null,null,null,"Earned Account:","Manufacturer","Compliance Category","MY"]
[]
[]
[null,null,null,null,"Earned Account:","VMTe","MPGae","MPGse"]
[null,null,null,null,null,{"$f":"IF(AND(OR(E30<>\"Carry Forward\",E30<>\"Carry Back\"),H30=\"Yes\",F33<>\"(Select Manufacturer)\",G33<>\"(Select Compliance Category)\",H33<>\"(Select MY)\"),VLOOKUP(CONCATENATE($G33,\"-\",$H33),Unique_ID_Lookup,4,FALSE),\"\")","v":""}]
[null,null,null,null,null,"(Select Manufacturer)","(Select Compliance Category)","(Select MY)"]
[null,null,null,null,"Current Account:","Manufacturer","Compliance Category","MY"]
[]
[null,null,null,null,null,"(Select Manufacturer)","(Select Compliance Category)","(Select MY)"]
[null,null,null,null,"Destination Account:","Manufacturer","Compliance Category","MY"]
[]
[]
[null,null,null,null,"Destination Account:","VMTu","MPGau","MPGsu"]
[null,null,null,null,null,{"$f":"IF(AND(OR(E30<>\"Carry Forward\",E30<>\"Carry Back\"),H30=\"Yes\",F42<>\"(Select Manufacturer)\",G42<>\"(Select Compliance Category)\",H42<>\"(Select MY)\"),VLOOKUP(CONCATENATE($G42,\"-\",$H42),Unique_ID_Lookup,4,FALSE),\"\")","v":""}]
[]
[null,null,null,null,null,null,"Adjustment Factor","Final Credit Amount"]
[null,null,null,null,null,null,{"$f":"ROUND(IFERROR(IF(OR(E30=\"(Select Transaction Type)\",H30=\"(Select Yes or No)\"),0,IF(OR(E30=\"Carry Forward\",E30=\"Carry Back\",H30=\"No\"),1,(F47*G38*H38)/(F38*G47*H47))),0),4)","v":0},{"$f":"ROUND(IFERROR(F32/G50,0),0)","v":0}]
[]
[]
[]
[null,null,null,"VMTe = Lifetime vehicle miles traveled as provided in the following table for the model year and compliance category in which the credit was earned;"]
[null,null,null,"MPGae = Actual fuel economy for the originating manufacturer, compliance category, and model year in which the credit was earned;"]
[null,null,null,"MPGse = Required fuel economy standard for the originating (earning) manufacturer, compliance category, and model year in which the credit was earned;"]
[null,null,null,"VMTu = Lifetime vehicle miles traveled as provided in the following table for the model year and compliance category in which the credit is used for compliance;"]
[null,null,null,"MPGau = Actual fuel economy for the user manufacturer, compliance category, and model year in which the credit is used for compliance; and"]
[null,null,null,"MPGsu = Required fuel economy standard for the user (buying) manufacturer, compliance category, and model year in which the credit is used for compliance."]

{"sheet":"Joint Trade Instructions","index":7,"n_rows":55,"n_cols":20,"rows_kept":55,"cut":false,"hidden":true,"merged":[[5,7,5,10],[5,11,7,19],[33,11,33,12],[18,11,18,12],[39,3,43,10],[10,2,10,3],[10,7,10,8],[5,2,5,5],[13,2,13,3],[47,3,51,10],[33,16,33,17],[18,16,18,17],[25,2,30,10],[33,2,35,10],[28,11,28,14],[28,16,28,19],[23,11,24,19]]}
[]
[null,{"$f":"Header","v":"United States Department of Transportation\nNational Highway Transportation Safety Administration\n\nNHTSA CAFE Credit Transaction Template (OMB Control No. 2127-0019)\nNHTSA Form Number 1475\n49 CFR 536.8, 49 CFR 536.5(d)(6), and 49 CFR 536.7\n\nVersion Number: 2.42; Last Revision: 04/15/2024; Expiration Date: xxxxxxxxxx"}]
[]
[null,null,null,null,null,null,"JOINT TRADE INSTRUCTIONS",null,null,null,"OMB Control No. 2127-0019",null,null,null,null,"JOINT TRADE INSTRUCTIONS",null,null,null,"OMB Control No. 2127-0019"]
[]
[null,null,"Credit Holder",null,null,null,null,"Credit Receiver",null,null,null,"Accordingly, we request that NHTSA accept this joint instruction and process the transaction as appropriate in accordance with 49 CFR Part 536.8."]
[null,null,{"$f":"Name_Holder","v":"(Select Manufacturer)"},null,null,null,null,{"$f":"Name_Receiver","v":"(Select Manufacturer)"}]
[null,null,{"$f":"Address1_Holder","v":0},null,null,null,null,{"$f":"Address1_Receiver","v":0}]
[null,null,{"$f":"Address2_Holder","v":0},null,null,null,null,{"$f":"Address2_Receiver","v":0}]
[null,null,{"$f":"CONCATENATE(City_Holder,\", \",State_Holder,\" \",Zip_Holder)","v":",  "},null,null,null,null,{"$f":"CONCATENATE(City_Receiver,\", \",State_Receiver,\" \",Zip_Receiver)","v":",  "},null,null,null,"Regards,"]
[null,null,{"$f":"Phone_Holder","v":0},null,null,null,null,{"$f":"Phone_Receiver","v":0}]
[]
[]
[null,null,{"$f":"Date","v":"00:00:00"},null,null,null,null,null,null,null,null,"Signature:",null,null,null,null,"Signature:"]
[null,null,null,null,null,null,null,null,null,null,null,{"$f":"Signatory_Name_Holder","v":0},null,null,null,null,{"$f":"Signatory_Name_Receiver","v":0}]
[null,null,"Eileen Sullivan",null,null,null,null,null,null,null,null,{"$f":"Signatory_Title_Holder","v":0},null,null,null,null,{"$f":"Signatory_Title_Receiver","v":0}]
[null,null,"Associate Administrator for Enforcement",null,null,null,null,null,null,null,null,{"$f":"Signatory_Dept_Holder","v":0},null,null,null,null,{"$f":"Signatory_Dept_Receiver","v":0}]
[null,null,"National Highway Traffic Safety Administration",null,null,null,null,null,null,null,null,{"$f":"Signatory_Company_Holder","v":0},null,null,null,null,{"$f":"Signatory_Company_Receiver","v":0}]
[null,null,"1200 New Jersey Avenue, SE",null,null,null,null,null,null,null,null,{"$f":"Signatory_Date_Holder","v":"00:00:00"},null,null,null,null,{"$f":"Signatory_Date_Receiver","v":"00:00:00"}]
[null,null,"Washington, DC 20590"]
[]
[null,null,"Subject: CAFE Credit Trade Agreement"]
[]
[null,null,"Dear Ms. Sullivan,",null,null,null,null,null,null,null,null,"If you have additional instructions, guidance, questions, or comments please contact the appropriate point of contact provided below."]
[]
[null,null,{"$f":"CONCATENATE(\"This letter is to inform the National Highway Traffic Safety Administration (NHTSA) that \",Name_Holder,\" and \",Name_Receiver,\" are submitting this Credit Trade Agreement as joint CAFE credit trading instructions to NHTSA in accordance with 49 CFR Part 536.8. This joint instruction requests that NHTSA transfer certain credits from \",Name_Holder,\"'s CAFE credit account(s) with NHTSA to \",Name_Receiver,\"'s CAFE credit account(s) with NHTSA as specified in the attached Credit Transaction Request.\")","v":"This letter is to inform the National Highway Traffic Safety Administration (NHTSA) that (Select Manufacturer) and (Select Manufacturer) are submitting this Credit Trade Agreement as joint CAFE credit trading instructions to NHTSA in accordance with 49 CFR Part 536.8. This joint instruction requests that NHTSA transfer certain credits from (Select Manufacturer)'s CAFE credit account(s) with NHTSA to (Select Manufacturer)'s CAFE credit account(s) with NHTSA as specified in the attached Credit Transaction Request."}]
[]
[]
[null,null,null,null,null,null,null,null,null,null,null,"Credit Holder Point of Contact",null,null,null,null,"Credit Receiver Point of Contact"]
[null,null,null,null,null,null,null,null,null,null,null,{"$f":"POC_Name_Holder","v":0},null,null,null,null,{"$f":"POC_Name_Receiver","v":0}]
[null,null,null,null,null,null,null,null,null,null,null,{"$f":"POC_Title_Holder","v":0},null,null,null,null,{"$f":"POC_Title_Receiver","v":0}]
[null,null,null,null,null,null,null,null,null,null,null,{"$f":"POC_Dept_Holder","v":0},null,null,null,null,{"$f":"POC_Dept_Receiver","v":0}]
[null,null,null,null,null,null,null,null,null,null,null,{"$f":"POC_Company_Holder","v":0},null,null,null,null,{"$f":"POC_Company_Receiver","v":0}]
[null,null,{"$f":"CONCATENATE(Name_Holder,\" affirms the current CAFE credit balance(s) in its account(s) are sufficient to support this transaction. \",Name_Holder,\" and \",Name_Receiver,\" acknowledge the following:\")","v":"(Select Manufacturer) affirms the current CAFE credit balance(s) in its account(s) are sufficient to support this transaction. (Select Manufacturer) and (Select Manufacturer) acknowledge the following:"},null,null,null,null,null,null,null,null,{"$f":"POC_Phone_Holder","v":0},null,null,null,null,{"$f":"POC_Phone_Receiver","v":0}]
[null,null,null,null,null,null,null,null,null,null,null,{"$f":"POC_Email_Holder","v":0},null,null,null,null,{"$f":"POC_Email_Receiver","v":0}]
[]
[]
[]
[null,null,null,"49 CFR Part 536.8(f)"]
[null,null,null,"If NHTSA determines that a manufacturer has been credited, through error or fraud, with earning credits, NHTSA will cancel those credits if possible. If the manufacturer credited with having earned those credits has already traded them when the error or fraud is discovered, NHTSA will hold the receiving manufacturer responsible for returning the same or equivalent credits to NHTSA for cancellation."]
[]
[]
[]
[null,null,null,null,null,null,null,null,null,null,null,"Enclosure(s)"]
[]
[]
[null,null,null,"49 CFR Part 536.8(g)"]
[null,null,null,"In general, all trades are final and irrevocable once executed, and may only be reversed by a new, mutually-agreed transaction. If NHTSA executes an erroneous instruction to trade credits from one holder to another through error or fraud, NHTSA will reverse the transaction if possible. If those credits have been traded away, the recipient holder is responsible for obtaining the same or equivalent credits for return to the previous holder."]
[]
[]
[]
[]
[]
[]
[null,null,"Page 1 of 2",null,null,null,null,null,null,null,null,"Page 2 of 2"]

{"sheet":"Supporting","index":8,"n_rows":48,"n_cols":20,"rows_kept":48,"cut":false,"hidden":true,"merged":[]}
["United States Department of Transportation\nNational Highway Transportation Safety Administration\n\nNHTSA CAFE Credit Template (OMB Control No. 2127-0019)\nNHTSA Form Number 1475\n49 CFR 536.8, 49 CFR 536.5(d)(6), and 49 CFR 536.7\n\nVersion Number: 1.1; Last Revision: 10/30/2018; Expiration Date: xxxxxxxxxx"]
[]
[null,"Unique ID","Compliance Category","MY","VMT\n(mi)",null,"Manufacturer","Manufacturer Code",null,"Compliance Category",null,"MY",null,"Transaction Type",null,"Credit Type",null,"Yes-No Toggle",null,"No. of Transactions"]
[null,{"$f":"CONCATENATE(C4,\"-\",D4)","v":"Domestic Passenger-2011"},"Domestic Passenger",2011,150922,null,"(Select Manufacturer)",null,null,"(Select Compliance Category)",null,"(Select MY)",null,"(Select Transaction Type)",null,"(Select Type of Credits)",null,"(Select Yes or No)",null,"(Select No. of Transactions)"]
[null,{"$f":"CONCATENATE(C5,\"-\",D5)","v":"Domestic Passenger-2012"},"Domestic Passenger",2012,177238,null,"Aston Martin","ASX",null,"Domestic Passenger",null,2011,null,"Trade",null,"Earned",null,"Yes",null,"One"]
[null,"Domestic Passenger-2013","Domestic Passenger",2013,177366,null,"BMW","BMX",null,"Import Passenger",null,2012,null,"Transfer",null,"Banked",null,"No",null,"Two"]
[null,"Domestic Passenger-2014","Domestic Passenger",2014,178652,null,"Bugatti Rimac - VW","BGR",null,"Light Truck",null,2013,null,"Carry Forward",null,null,null,null,null,"Three"]
[null,"Domestic Passenger-2015","Domestic Passenger",2015,180497,null,"BYD Motors","BYD",null,null,null,2014,null,"Carry Back",null,null,null,null,null,"Four"]
[null,"Domestic Passenger-2016","Domestic Passenger",2016,182134,null,"Elux Automotive","FSK",null,null,null,2015,null,"Application",null,null,null,null,null,"Five"]
[null,"Domestic Passenger-2017","Domestic Passenger",2017,195264,null,"Ferrari","FEX",null,null,null,2016,null,null,null,null,null,null,null,"Six"]
[null,"Domestic Passenger-2018","Domestic Passenger",2018,195264,null,"Fiat Chrysler","CRX",null,null,null,2017,null,null,null,null,null,null,null,"Seven"]
[null,"Domestic Passenger-2019","Domestic Passenger",2019,195264,null,"Fisker","FGI",null,null,null,2018,null,null,null,null,null,null,null,"Eight"]
[null,"Domestic Passenger-2020","Domestic Passenger",2020,195264,null,"Ford","FMX",null,null,null,2019,null,null,null,null,null,null,null,"Nine"]
[null,"Domestic Passenger-2021","Domestic Passenger",2021,195264,null,"General Motors","GMX",null,null,null,2020,null,null,null,null,null,null,null,"Ten"]
[null,"Domestic Passenger-2022","Domestic Passenger",2022,195264,null,"Honda","HNX",null,null,null,2021]
[null,"Domestic Passenger-2023","Domestic Passenger",2023,195264,null,"Hyundai","HYX",null,null,null,2022]
[null,"Domestic Passenger-2024","Domestic Passenger",2024,195264,null,"Ineos Automotive","IAL",null,null,null,2023]
[null,"Domestic Passenger-2025","Domestic Passenger",2025,195264,null,"Jaguar Land Rover","JLX",null,null,null,2024]
[null,"Import Passenger-2011","Import Passenger",2011,150922,null,"Karma Automotive","KAL",null,null,null,2025]
[null,"Import Passenger-2012","Import Passenger",2012,177238,null,"Kia","KMX",null,null,null,2026]
[null,"Import Passenger-2013","Import Passenger",2013,177366,null,"Koenigsegg Automotive AB","KGG",null,null,null,2027]
[null,"Import Passenger-2014","Import Passenger",2014,178652,null,"Lordstown Motors","LEV",null,null,null,2028]
[null,"Import Passenger-2015","Import Passenger",2015,180497,null,"Lotus","LTX",null,null,null,2029]
[null,"Import Passenger-2016","Import Passenger",2016,182134,null,"Lucid Motors","LMU",null,null,null,2030]
[null,"Import Passenger-2017","Import Passenger",2017,195264,null,"Mazda","TKX"]
[null,"Import Passenger-2018","Import Passenger",2018,195264,null,"McLaren","MLN"]
[null,"Import Passenger-2019","Import Passenger",2019,195264,null,"Mercedes-Benz","MBX"]
[null,"Import Passenger-2020","Import Passenger",2020,195264,null,"Mitsubishi","MTX"]
[null,"Import Passenger-2021","Import Passenger",2021,195264,null,"Mullen Automotive","MLA"]
[null,"Import Passenger-2022","Import Passenger",2022,195264,null,"Nissan","NSX"]
[null,"Import Passenger-2023","Import Passenger",2023,195264,null,"Pagani","PGN"]
[null,"Import Passenger-2024","Import Passenger",2024,195264,null,"Rivian Automotive LLC","RIV"]
[null,"Import Passenger-2025","Import Passenger",2025,195264,null,"RUF Automobile GmbH","RAX"]
[null,"Light Truck-2011","Light Truck",2011,172552,null,"Subaru","FJX"]
[null,"Light Truck-2012","Light Truck",2012,208471,null,"Tesla","TSL"]
[null,"Light Truck-2013","Light Truck",2013,208537,null,"Toyota","TYX"]
[null,"Light Truck-2014","Light Truck",2014,209974,null,"VinFast Trading and Production Joint Stock Company ","VTP"]
[null,"Light Truck-2015","Light Truck",2015,212040,null,"Volkswagen Group of America, Inc.","VGA"]
[null,"Light Truck-2016","Light Truck",2016,213954,null,"Volvo","VVX"]
[null,"Light Truck-2017","Light Truck",2017,225865]
[null,"Light Truck-2018","Light Truck",2018,225865]
[null,"Light Truck-2019","Light Truck",2019,225865]
[null,"Light Truck-2020","Light Truck",2020,225865]
[null,"Light Truck-2021","Light Truck",2021,225865]
[null,"Light Truck-2022","Light Truck",2022,225865]
[null,"Light Truck-2023","Light Truck",2023,225865]
[null,"Light Truck-2024","Light Truck",2024,225865]
[null,"Light Truck-2025","Light Truck",2025,225865]